[Event "Titled Tuesday Blitz March 07 Late 2023"]
[White "Vaglio Munoz, Jaime"]
[Black "Manu_ChessExcelsior"]
[WhiteFideId "6500145"]
[WhiteElo "2199"]
[BlackElo "1981"]
[Result "1-0"]
[Round "02"]
[TimeControl "180+2"]
[Date "2023.03.07"]
[WhiteClock "0:00:22"]
[BlackClock "0:00:07"]

1. Nf3 {[%clk 0:03:00]}  d5 {[%clk 0:02:56]} 2. d3 {[%clk 0:03:00]}  Nf6 {[%clk 0:02:54]} 3. Nbd2 {[%clk 0:03:01]}  Nc6 {[%clk 0:02:48]} 4. e4 {[%clk 0:02:59]}  dxe4 {[%clk 0:02:47]} 5. dxe4 {[%clk 0:03:00]}  e5 {[%clk 0:02:48]} 6. Bb5 {[%clk 0:02:57]}  Bd6 {[%clk 0:02:42]} 7. O-O {[%clk 0:02:55]}  O-O {[%clk 0:02:41]} 8. h3 {[%clk 0:02:53]}  Nd4 {[%clk 0:02:29]} 9. Nxd4 {[%clk 0:02:37]}  exd4 {[%clk 0:02:30]} 10. f4 {[%clk 0:02:34]}  Bc5 {[%clk 0:02:13]} 11. Bd3 {[%clk 0:02:34]}  Re8 {[%clk 0:02:01]} 12. Qf3 {[%clk 0:02:31]}  Bd7 {[%clk 0:01:39]} 13. e5 {[%clk 0:02:05]}  Bc6 {[%clk 0:01:39]} 14. Qg3 {[%clk 0:02:04]}  Nd5 {[%clk 0:01:38]} 15. Ne4 {[%clk 0:02:03]}  Bf8 {[%clk 0:01:34]} 16. Ng5 {[%clk 0:01:59]}  h6 {[%clk 0:01:31]} 17. Bh7+ {[%clk 0:01:58]}  Kh8 {[%clk 0:01:28]} 18. Nxf7+ {[%clk 0:01:55]}  Kxh7 {[%clk 0:01:28]} 19. Nxd8 {[%clk 0:01:56]}  Raxd8 {[%clk 0:01:27]} 20. f5 {[%clk 0:01:49]}  Bb5 {[%clk 0:01:00]} 21. Rf3 {[%clk 0:01:33]}  Be2 {[%clk 0:00:57]} 22. Rf2 {[%clk 0:01:23]}  Bh5 {[%clk 0:00:52]} 23. Qh4 {[%clk 0:01:12]}  Bf7 {[%clk 0:00:42]} 24. Bg5 {[%clk 0:00:57]}  Be7 {[%clk 0:00:31]} 25. f6 {[%clk 0:00:54]}  gxf6 {[%clk 0:00:23]} 26. Qxh6+ {[%clk 0:00:53]}  Kg8 {[%clk 0:00:23]} 27. e6 {[%clk 0:00:45]}  Bxe6 {[%clk 0:00:20]} 28. Qg6+ {[%clk 0:00:45]}  Kh8 {[%clk 0:00:21]} 29. Bxf6+ {[%clk 0:00:30]}  Nxf6 {[%clk 0:00:20]} 30. Rxf6 {[%clk 0:00:28]}  Bxf6 {[%clk 0:00:20]} 31. Qxf6+ {[%clk 0:00:29]}  Kg8 {[%clk 0:00:17]} 32. Qg6+ {[%clk 0:00:27]}  Kh8 {[%clk 0:00:17]} 33. Rf1 {[%clk 0:00:27]}  Bc4 {[%clk 0:00:12]} 34. Rf4 {[%clk 0:00:25]}  Re1+ {[%clk 0:00:07]} 35. Kh2 {[%clk 0:00:22]} 1-0


[Site "https://www.chess.com"]

[Event "Titled Tuesday Blitz March 07 Late 2023"]
[White "Cavanah, Troy"]
[Black "Topalov, Aleksandar"]
[WhiteFideId "30949670"]
[BlackFideId "925659"]
[WhiteElo "1878"]
[BlackElo "2151"]
[Result "0-1"]
[Round "02"]
[TimeControl "180+2"]
[Date "2023.03.07"]
[WhiteClock "0:00:01"]
[BlackClock "0:00:10"]

1. e4 {[%clk 0:03:00]}  e6 {[%clk 0:02:58]} 2. d4 {[%clk 0:03:00]}  d5 {[%clk 0:02:58]} 3. Nc3 {[%clk 0:03:00]}  Bb4 {[%clk 0:02:57]} 4. exd5 {[%clk 0:02:58]}  exd5 {[%clk 0:02:56]} 5. Bd3 {[%clk 0:02:59]}  Ne7 {[%clk 0:02:55]} 6. Nf3 {[%clk 0:02:58]}  h6 {[%clk 0:02:55]} 7. O-O {[%clk 0:02:58]}  O-O {[%clk 0:02:55]} 8. a3 {[%clk 0:02:56]}  Bxc3 {[%clk 0:02:54]} 9. bxc3 {[%clk 0:02:56]}  Bf5 {[%clk 0:02:52]} 10. a4 {[%clk 0:02:51]}  Bxd3 {[%clk 0:02:51]} 11. Qxd3 {[%clk 0:02:52]}  Nbc6 {[%clk 0:02:46]} 12. Ba3 {[%clk 0:02:51]}  Re8 {[%clk 0:02:46]} 13. Rab1 {[%clk 0:02:49]}  b6 {[%clk 0:02:45]} 14. c4 {[%clk 0:02:44]}  Ng6 {[%clk 0:02:38]} 15. cxd5 {[%clk 0:02:42]}  Qxd5 {[%clk 0:02:38]} 16. c4 {[%clk 0:02:41]}  Qh5 {[%clk 0:02:37]} 17. Rb5 {[%clk 0:02:34]}  Qg4 {[%clk 0:02:31]} 18. h3 {[%clk 0:02:34]}  Qd7 {[%clk 0:02:24]} 19. Rd5 {[%clk 0:02:29]}  Qe6 {[%clk 0:02:12]} 20. Re1 {[%clk 0:02:23]}  Qf6 {[%clk 0:01:56]} 21. Rxe8+ {[%clk 0:02:16]}  Rxe8 {[%clk 0:01:55]} 22. Rf5 {[%clk 0:02:17]}  Qd8 {[%clk 0:01:44]} 23. Bb2 {[%clk 0:01:45]}  Nce7 {[%clk 0:00:36]} 24. Rb5 {[%clk 0:01:45]}  a6 {[%clk 0:00:35]} 25. Rb3 {[%clk 0:01:43]}  Nf4 {[%clk 0:00:34]} 26. Qd2 {[%clk 0:01:31]}  Neg6 {[%clk 0:00:34]} 27. Re3 {[%clk 0:01:14]}  Qd7 {[%clk 0:00:27]} 28. d5 {[%clk 0:01:11]}  Qxa4 {[%clk 0:00:19]} 29. Ra3 {[%clk 0:00:26]}  Qxc4 {[%clk 0:00:17]} 30. Re3 {[%clk 0:00:12]}  Rxe3 {[%clk 0:00:15]} 31. Qxe3 {[%clk 0:00:11]}  Qxd5 {[%clk 0:00:13]} 32. Nd4 {[%clk 0:00:05]}  Kh7 {[%clk 0:00:11]} 33. g3 {[%clk 0:00:01]}  Qg2# {[%clk 0:00:10]} 0-1


[Site "https://www.chess.com"]

[Event "Titled Tuesday Blitz March 07 Late 2023"]
[White "Guzman Moneo, Alberto"]
[Black "Burke, Paul"]
[WhiteFideId "2209616"]
[BlackFideId "2605767"]
[WhiteElo "2157"]
[BlackElo "1903"]
[Result "1-0"]
[Round "02"]
[TimeControl "180+2"]
[Date "2023.03.07"]
[WhiteClock "0:01:24"]
[BlackClock "0:01:00"]

1. e4 {[%clk 0:03:00]}  e5 {[%clk 0:02:50]} 2. Nf3 {[%clk 0:02:59]}  Nc6 {[%clk 0:02:49]} 3. d4 {[%clk 0:02:58]}  exd4 {[%clk 0:02:49]} 4. Nxd4 {[%clk 0:02:58]}  Be7 {[%clk 0:02:49]} 5. Nc3 {[%clk 0:02:56]}  d6 {[%clk 0:02:49]} 6. Bb5 {[%clk 0:02:55]}  Bd7 {[%clk 0:02:48]} 7. Nxc6 {[%clk 0:02:55]}  bxc6 {[%clk 0:02:47]} 8. Bc4 {[%clk 0:02:55]}  Nf6 {[%clk 0:02:47]} 9. O-O {[%clk 0:02:55]}  O-O {[%clk 0:02:47]} 10. Re1 {[%clk 0:02:54]}  Be6 {[%clk 0:02:44]} 11. Bb3 {[%clk 0:02:53]}  Bxb3 {[%clk 0:02:44]} 12. axb3 {[%clk 0:02:53]}  d5 {[%clk 0:02:43]} 13. Bg5 {[%clk 0:02:49]}  d4 {[%clk 0:02:42]} 14. Ne2 {[%clk 0:02:43]}  c5 {[%clk 0:02:41]} 15. Ng3 {[%clk 0:02:40]}  h6 {[%clk 0:02:38]} 16. Bf4 {[%clk 0:02:37]}  Re8 {[%clk 0:02:19]} 17. Nf5 {[%clk 0:02:37]}  Qd7 {[%clk 0:02:12]} 18. Qf3 {[%clk 0:02:33]}  Qe6 {[%clk 0:01:59]} 19. h3 {[%clk 0:02:16]}  Bf8 {[%clk 0:01:57]} 20. Bxc7 {[%clk 0:02:05]}  Nxe4 {[%clk 0:01:51]} 21. Qg4 {[%clk 0:01:51]}  g5 {[%clk 0:01:25]} 22. f3 {[%clk 0:01:41]}  Qc6 {[%clk 0:01:13]} 23. Rxe4 {[%clk 0:01:33]}  Qxc7 {[%clk 0:01:10]} 24. Rae1 {[%clk 0:01:25]}  Rxe4 {[%clk 0:01:08]} 25. Qxe4 {[%clk 0:01:25]}  Bg7 {[%clk 0:01:00]} 26. Qxa8+ {[%clk 0:01:24]} 1-0


[Site "https://www.chess.com"]

[Event "Titled Tuesday Blitz March 07 Late 2023"]
[White "Mahdavi, Reza"]
[Black "Carlsen, Magnus"]
[WhiteFideId "12595926"]
[BlackFideId "1503014"]
[WhiteElo "2208"]
[BlackElo "2852"]
[Result "0-1"]
[Round "03"]
[TimeControl "180+2"]
[Date "2023.03.07"]
[WhiteClock "0:00:24"]
[BlackClock "0:01:00"]

1. Nf3 {[%clk 0:03:00]}  Nf6 {[%clk 0:02:56]} 2. g3 {[%clk 0:03:01]}  b6 {[%clk 0:02:56]} 3. Bg2 {[%clk 0:03:01]}  Bb7 {[%clk 0:02:54]} 4. b3 {[%clk 0:03:01]}  g6 {[%clk 0:02:52]} 5. Bb2 {[%clk 0:03:02]}  Bg7 {[%clk 0:02:52]} 6. O-O {[%clk 0:03:02]}  O-O {[%clk 0:02:52]} 7. c4 {[%clk 0:03:02]}  e6 {[%clk 0:02:49]} 8. d4 {[%clk 0:02:58]}  Na6 {[%clk 0:02:46]} 9. Nc3 {[%clk 0:02:54]}  d5 {[%clk 0:02:44]} 10. cxd5 {[%clk 0:02:52]}  exd5 {[%clk 0:02:44]} 11. Ne5 {[%clk 0:02:47]}  Qe7 {[%clk 0:02:44]} 12. e3 {[%clk 0:02:35]}  c5 {[%clk 0:02:44]} 13. a4 {[%clk 0:02:29]}  Rfd8 {[%clk 0:02:42]} 14. a5 {[%clk 0:02:29]}  Ne4 {[%clk 0:02:27]} 15. Nxe4 {[%clk 0:02:13]}  dxe4 {[%clk 0:02:28]} 16. Qe2 {[%clk 0:02:12]}  Bxe5 {[%clk 0:02:21]} 17. dxe5 {[%clk 0:02:13]}  Nb4 {[%clk 0:02:21]} 18. axb6 {[%clk 0:02:02]}  axb6 {[%clk 0:02:21]} 19. Rxa8 {[%clk 0:01:32]}  Bxa8 {[%clk 0:02:18]} 20. Ra1 {[%clk 0:01:32]}  Bd5 {[%clk 0:02:17]} 21. Qb5 {[%clk 0:01:27]}  Nd3 {[%clk 0:02:12]} 22. Bc3 {[%clk 0:01:27]}  Qe6 {[%clk 0:02:07]} 23. Ra6 {[%clk 0:01:18]}  Rb8 {[%clk 0:01:38]} 24. Ba5 {[%clk 0:01:18]}  Bc6 {[%clk 0:01:33]} 25. Qc4 {[%clk 0:01:05]}  Qxc4 {[%clk 0:01:30]} 26. bxc4 {[%clk 0:01:06]}  bxa5 {[%clk 0:01:31]} 27. Rxc6 {[%clk 0:01:07]}  Rb1+ {[%clk 0:01:31]} 28. Bf1 {[%clk 0:01:07]}  a4 {[%clk 0:01:31]} 29. Kg2 {[%clk 0:00:58]}  a3 {[%clk 0:01:29]} 30. Ra6 {[%clk 0:00:55]}  Ra1 {[%clk 0:01:18]} 31. e6 {[%clk 0:00:51]}  fxe6 {[%clk 0:01:18]} 32. Be2 {[%clk 0:00:51]}  Ra2 {[%clk 0:01:13]} 33. Bg4 {[%clk 0:00:36]}  Rxf2+ {[%clk 0:01:13]} 34. Kh3 {[%clk 0:00:37]}  a2 {[%clk 0:01:13]} 35. Bxe6+ {[%clk 0:00:35]}  Kg7 {[%clk 0:01:13]} 36. Ra7+ {[%clk 0:00:30]}  Kf6 {[%clk 0:01:09]} 37. Bd5 {[%clk 0:00:27]}  Nb4 {[%clk 0:01:09]} 38. Kg4 {[%clk 0:00:25]}  h5+ {[%clk 0:01:02]} 39. Kh3 {[%clk 0:00:24]}  Nxd5 {[%clk 0:01:00]} 0-1


[Site "https://www.chess.com"]

[Event "Titled Tuesday Blitz March 07 Late 2023"]
[White "Costachi, Mihnea"]
[Black "Yu, Yangyi"]
[WhiteFideId "1217518"]
[BlackFideId "8603820"]
[WhiteElo "2456"]
[BlackElo "2783"]
[Result "0-1"]
[Round "03"]
[TimeControl "180+2"]
[Date "2023.03.07"]
[WhiteClock "0:00:12"]
[BlackClock "0:00:10"]

1. d4 {[%clk 0:03:00]}  Nf6 {[%clk 0:02:59]} 2. c4 {[%clk 0:03:01]}  e6 {[%clk 0:02:59]} 3. Nf3 {[%clk 0:03:00]}  Bb4+ {[%clk 0:02:54]} 4. Bd2 {[%clk 0:03:00]}  c5 {[%clk 0:02:49]} 5. Bxb4 {[%clk 0:02:55]}  cxb4 {[%clk 0:02:50]} 6. g3 {[%clk 0:02:56]}  b6 {[%clk 0:02:50]} 7. Bg2 {[%clk 0:02:56]}  Bb7 {[%clk 0:02:50]} 8. a3 {[%clk 0:02:57]}  Qe7 {[%clk 0:02:33]} 9. O-O {[%clk 0:02:55]}  O-O {[%clk 0:02:33]} 10. Nbd2 {[%clk 0:02:39]}  a5 {[%clk 0:02:30]} 11. axb4 {[%clk 0:02:34]}  Qxb4 {[%clk 0:02:28]} 12. Qc2 {[%clk 0:02:32]}  Na6 {[%clk 0:02:23]} 13. e4 {[%clk 0:02:28]}  Qe7 {[%clk 0:02:02]} 14. e5 {[%clk 0:02:26]}  Ne8 {[%clk 0:01:57]} 15. Ng5 {[%clk 0:02:02]}  Qxg5 {[%clk 0:01:54]} 16. f4 {[%clk 0:01:49]}  Qe7 {[%clk 0:01:37]} 17. Bxb7 {[%clk 0:01:49]}  Ra7 {[%clk 0:01:38]} 18. Bxa6 {[%clk 0:01:32]}  Rxa6 {[%clk 0:01:37]} 19. f5 {[%clk 0:01:33]}  d6 {[%clk 0:01:31]} 20. f6 {[%clk 0:01:20]}  gxf6 {[%clk 0:01:29]} 21. exf6 {[%clk 0:01:21]}  Nxf6 {[%clk 0:01:27]} 22. Rf4 {[%clk 0:01:18]}  Ra7 {[%clk 0:01:16]} 23. Raf1 {[%clk 0:01:17]}  Ne8 {[%clk 0:01:10]} 24. d5 {[%clk 0:00:49]}  exd5 {[%clk 0:01:02]} 25. cxd5 {[%clk 0:00:50]}  Qe3+ {[%clk 0:00:50]} 26. R1f2 {[%clk 0:00:36]}  Rc7 {[%clk 0:00:46]} 27. Qf5 {[%clk 0:00:35]}  Qe5 {[%clk 0:00:34]} 28. Qg4+ {[%clk 0:00:21]}  Kh8 {[%clk 0:00:27]} 29. Rf5 {[%clk 0:00:21]}  Qg7 {[%clk 0:00:17]} 30. Qf4 {[%clk 0:00:19]}  Qxb2 {[%clk 0:00:14]} 31. Kg2 {[%clk 0:00:14]}  Qg7 {[%clk 0:00:10]} 32. Ne4 {[%clk 0:00:12]}  f6 {[%clk 0:00:09]} 33. Nxd6 {[%clk 0:00:11]}  Nxd6 {[%clk 0:00:09]} 34. Qxd6 {[%clk 0:00:12]}  Qe7 {[%clk 0:00:07]} 35. Qxe7 {[%clk 0:00:10]}  Rxe7 {[%clk 0:00:07]} 36. Rxf6 {[%clk 0:00:10]}  Rxf6 {[%clk 0:00:06]} 37. Rxf6 {[%clk 0:00:11]}  Rb7 {[%clk 0:00:06]} 38. d6 {[%clk 0:00:06]}  Kg7 {[%clk 0:00:06]} 39. d7 {[%clk 0:00:07]}  Rxd7 {[%clk 0:00:06]} 40. Rxb6 {[%clk 0:00:08]}  Ra7 {[%clk 0:00:07]} 41. Rb3 {[%clk 0:00:08]}  a4 {[%clk 0:00:07]} 42. Ra3 {[%clk 0:00:09]}  Kf6 {[%clk 0:00:07]} 43. Kf3 {[%clk 0:00:10]}  Kf5 {[%clk 0:00:06]} 44. h3 {[%clk 0:00:06]}  Ke5 {[%clk 0:00:06]} 45. Ke3 {[%clk 0:00:07]}  Kd5 {[%clk 0:00:06]} 46. Kd3 {[%clk 0:00:04]}  Kc5 {[%clk 0:00:07]} 47. Kc3 {[%clk 0:00:05]}  Kb5 {[%clk 0:00:07]} 48. Ra1 {[%clk 0:00:05]}  Rf7 {[%clk 0:00:04]} 49. Rb1+ {[%clk 0:00:05]}  Kc5 {[%clk 0:00:04]} 50. Rd1 {[%clk 0:00:03]}  Rf3+ {[%clk 0:00:04]} 51. Rd3 {[%clk 0:00:04]}  Rxd3+ {[%clk 0:00:03]} 52. Kxd3 {[%clk 0:00:05]}  Kd5 {[%clk 0:00:04]} 53. Kc3 {[%clk 0:00:04]}  Ke4 {[%clk 0:00:04]} 54. Kb4 {[%clk 0:00:05]}  Kf3 {[%clk 0:00:04]} 55. h4 {[%clk 0:00:01]}  h5 {[%clk 0:00:04]} 56. Kxa4 {[%clk 0:00:01]}  Kxg3 {[%clk 0:00:04]} 57. Kb3 {[%clk 0:00:02]}  Kxh4 {[%clk 0:00:05]} 58. Kc2 {[%clk 0:00:03]}  Kg3 {[%clk 0:00:05]} 59. Kd1 {[%clk 0:00:04]}  Kg2 {[%clk 0:00:05]} 60. Ke2 {[%clk 0:00:05]}  h4 {[%clk 0:00:06]} 61. Ke3 {[%clk 0:00:06]}  h3 {[%clk 0:00:07]} 62. Kf4 {[%clk 0:00:06]}  h2 {[%clk 0:00:08]} 63. Kg4 {[%clk 0:00:07]}  h1=Q {[%clk 0:00:08]} 64. Kf4 {[%clk 0:00:08]}  Qh3 {[%clk 0:00:09]} 65. Ke4 {[%clk 0:00:09]}  Qf3+ {[%clk 0:00:09]} 66. Kd4 {[%clk 0:00:09]}  Qe2 {[%clk 0:00:09]} 67. Kc3 {[%clk 0:00:09]}  Kf3 {[%clk 0:00:10]} 68. Kd4 {[%clk 0:00:10]}  Qe4+ {[%clk 0:00:10]} 69. Kc3 {[%clk 0:00:11]}  Ke2 {[%clk 0:00:09]} 70. Kb3 {[%clk 0:00:10]}  Qc6 {[%clk 0:00:09]} 71. Kb4 {[%clk 0:00:11]}  Kd3 {[%clk 0:00:09]} 72. Kb3 {[%clk 0:00:12]}  Qb5+ {[%clk 0:00:10]} 73. Ka2 {[%clk 0:00:12]}  Kc2 {[%clk 0:00:10]} 74. Ka3 {[%clk 0:00:12]}  Qb3# {[%clk 0:00:10]} 0-1


[Site "https://www.chess.com"]

[Event "Titled Tuesday Blitz March 07 Late 2023"]
[White "Vachier-Lagrave, Maxime"]
[Black "Barp, Alberto"]
[WhiteFideId "623539"]
[BlackFideId "872555"]
[WhiteElo "2740"]
[BlackElo "2313"]
[Result "1-0"]
[Round "03"]
[TimeControl "180+2"]
[Date "2023.03.07"]
[WhiteClock "0:00:07"]
[BlackClock "0:00:02"]

1. d4 {[%clk 0:03:00]}  Nf6 {[%clk 0:02:54]} 2. c4 {[%clk 0:02:59]}  e6 {[%clk 0:02:53]} 3. Nf3 {[%clk 0:02:54]}  d5 {[%clk 0:02:53]} 4. g3 {[%clk 0:02:55]}  c5 {[%clk 0:02:27]} 5. Bg2 {[%clk 0:02:51]}  Nc6 {[%clk 0:02:27]} 6. cxd5 {[%clk 0:02:39]}  exd5 {[%clk 0:02:27]} 7. O-O {[%clk 0:02:38]}  Be7 {[%clk 0:02:27]} 8. b3 {[%clk 0:02:31]}  O-O {[%clk 0:02:24]} 9. Bb2 {[%clk 0:02:30]}  Ne4 {[%clk 0:02:23]} 10. dxc5 {[%clk 0:02:23]}  Bxc5 {[%clk 0:02:21]} 11. Nc3 {[%clk 0:02:20]}  Nxc3 {[%clk 0:02:09]} 12. Bxc3 {[%clk 0:02:21]}  d4 {[%clk 0:02:10]} 13. Bb2 {[%clk 0:02:20]}  Re8 {[%clk 0:02:03]} 14. Rc1 {[%clk 0:02:16]}  Bb6 {[%clk 0:02:02]} 15. Nd2 {[%clk 0:02:04]}  Bg4 {[%clk 0:01:56]} 16. Bf3 {[%clk 0:01:59]}  Qd7 {[%clk 0:01:51]} 17. Bxg4 {[%clk 0:01:30]}  Qxg4 {[%clk 0:01:50]} 18. e4 {[%clk 0:01:27]}  Qh3 {[%clk 0:01:33]} 19. f4 {[%clk 0:01:25]}  d3+ {[%clk 0:01:19]} 20. Kh1 {[%clk 0:01:25]}  Be3 {[%clk 0:01:19]} 21. Rf3 {[%clk 0:00:52]}  Bxd2 {[%clk 0:01:10]} 22. Qxd2 {[%clk 0:00:53]}  Rxe4 {[%clk 0:01:09]} 23. Qxd3 {[%clk 0:00:46]}  Rae8 {[%clk 0:01:06]} 24. Qf1 {[%clk 0:00:35]}  Qe6 {[%clk 0:00:44]} 25. Rf2 {[%clk 0:00:35]}  Qd5 {[%clk 0:00:35]} 26. Kg1 {[%clk 0:00:34]}  Nd4 {[%clk 0:00:31]} 27. Rd1 {[%clk 0:00:32]}  Qc5 {[%clk 0:00:19]} 28. Bxd4 {[%clk 0:00:16]}  Rxd4 {[%clk 0:00:20]} 29. Rc1 {[%clk 0:00:17]}  Qd6 {[%clk 0:00:20]} 30. Qb5 {[%clk 0:00:16]}  Rd8 {[%clk 0:00:20]} 31. Qxb7 {[%clk 0:00:16]}  h5 {[%clk 0:00:17]} 32. h4 {[%clk 0:00:14]}  Rd3 {[%clk 0:00:17]} 33. Kh2 {[%clk 0:00:14]}  Qg6 {[%clk 0:00:16]} 34. Rg1 {[%clk 0:00:13]}  Rd2 {[%clk 0:00:16]} 35. Rxd2 {[%clk 0:00:12]}  Rxd2+ {[%clk 0:00:17]} 36. Rg2 {[%clk 0:00:13]}  Qc2 {[%clk 0:00:17]} 37. Rxd2 {[%clk 0:00:11]}  Qxd2+ {[%clk 0:00:18]} 38. Qg2 {[%clk 0:00:12]}  Qd1 {[%clk 0:00:17]} 39. Qf2 {[%clk 0:00:12]}  f5 {[%clk 0:00:16]} 40. Qxa7 {[%clk 0:00:11]}  Qe2+ {[%clk 0:00:13]} 41. Kg1 {[%clk 0:00:11]}  Qd1+ {[%clk 0:00:13]} 42. Kg2 {[%clk 0:00:11]}  Qe2+ {[%clk 0:00:11]} 43. Qf2 {[%clk 0:00:11]}  Qe4+ {[%clk 0:00:11]} 44. Kh2 {[%clk 0:00:11]}  Qb1 {[%clk 0:00:10]} 45. Qd2 {[%clk 0:00:11]}  Kh7 {[%clk 0:00:10]} 46. b4 {[%clk 0:00:11]}  Qa1 {[%clk 0:00:08]} 47. b5 {[%clk 0:00:11]}  Qb1 {[%clk 0:00:08]} 48. a4 {[%clk 0:00:11]}  Qb3 {[%clk 0:00:08]} 49. a5 {[%clk 0:00:09]}  Qxb5 {[%clk 0:00:08]} 50. Qa2 {[%clk 0:00:10]}  Qa6 {[%clk 0:00:08]} 51. Kg1 {[%clk 0:00:09]}  Qa7+ {[%clk 0:00:07]} 52. Kf1 {[%clk 0:00:09]}  Qa6+ {[%clk 0:00:07]} 53. Kf2 {[%clk 0:00:10]}  Kg6 {[%clk 0:00:06]} 54. Ke3 {[%clk 0:00:09]}  Qa7+ {[%clk 0:00:05]} 55. Kd3 {[%clk 0:00:09]}  Qa6+ {[%clk 0:00:05]} 56. Kd4 {[%clk 0:00:10]}  Qd6+ {[%clk 0:00:04]} 57. Qd5 {[%clk 0:00:07]}  Qb4+ {[%clk 0:00:04]} 58. Ke5 {[%clk 0:00:07]}  Qe1+ {[%clk 0:00:03]} 59. Kd6 {[%clk 0:00:06]}  Qb4+ {[%clk 0:00:03]} 60. Kd7 {[%clk 0:00:06]}  Kf6 {[%clk 0:00:02]} 61. Qd6+ {[%clk 0:00:06]}  Qxd6+ {[%clk 0:00:02]} 62. Kxd6 {[%clk 0:00:07]} 1-0


[Site "https://www.chess.com"]

[Event "Titled Tuesday Blitz March 07 Late 2023"]
[White "Rorrer, Grayson"]
[Black "Duda, Jan-Krzysztof"]
[WhiteFideId "30944996"]
[BlackFideId "1170546"]
[WhiteElo "2200"]
[BlackElo "2790"]
[Result "0-1"]
[Round "03"]
[TimeControl "180+2"]
[Date "2023.03.07"]
[WhiteClock "0:00:02"]
[BlackClock "0:00:03"]

1. e4 {[%clk 0:03:00]}  c5 {[%clk 0:02:58]} 2. Nf3 {[%clk 0:03:01]}  e6 {[%clk 0:02:57]} 3. d4 {[%clk 0:03:01]}  cxd4 {[%clk 0:02:58]} 4. Nxd4 {[%clk 0:03:01]}  a6 {[%clk 0:02:59]} 5. c4 {[%clk 0:03:01]}  Nf6 {[%clk 0:02:58]} 6. Nc3 {[%clk 0:03:02]}  Qc7 {[%clk 0:02:58]} 7. a3 {[%clk 0:03:02]}  b6 {[%clk 0:02:56]} 8. Be2 {[%clk 0:03:02]}  Bb7 {[%clk 0:02:57]} 9. f3 {[%clk 0:03:02]}  d6 {[%clk 0:02:55]} 10. O-O {[%clk 0:03:02]}  Nbd7 {[%clk 0:02:55]} 11. Be3 {[%clk 0:03:03]}  Rc8 {[%clk 0:02:52]} 12. Rc1 {[%clk 0:03:04]}  Qb8 {[%clk 0:02:49]} 13. Qd2 {[%clk 0:03:04]}  Be7 {[%clk 0:02:49]} 14. Rfd1 {[%clk 0:03:05]}  O-O {[%clk 0:02:49]} 15. b4 {[%clk 0:03:05]}  Bd8 {[%clk 0:02:46]} 16. Nb3 {[%clk 0:03:06]}  Bc7 {[%clk 0:02:46]} 17. Bf4 {[%clk 0:03:04]}  Ne5 {[%clk 0:02:41]} 18. Bxe5 {[%clk 0:03:05]}  dxe5 {[%clk 0:02:41]} 19. c5 {[%clk 0:03:06]}  bxc5 {[%clk 0:02:18]} 20. Nxc5 {[%clk 0:03:07]}  a5 {[%clk 0:02:19]} 21. Kh1 {[%clk 0:02:51]}  axb4 {[%clk 0:02:18]} 22. axb4 {[%clk 0:02:52]}  h6 {[%clk 0:02:12]} 23. Qb2 {[%clk 0:02:38]}  Rcd8 {[%clk 0:01:59]} 24. b5 {[%clk 0:02:19]}  Rxd1+ {[%clk 0:01:16]} 25. Rxd1 {[%clk 0:02:19]}  Rd8 {[%clk 0:01:16]} 26. Rxd8+ {[%clk 0:01:38]}  Bxd8 {[%clk 0:01:17]} 27. N3a4 {[%clk 0:01:38]}  Be7 {[%clk 0:00:46]} 28. Nxb7 {[%clk 0:01:22]}  Qxb7 {[%clk 0:00:47]} 29. Qxe5 {[%clk 0:01:22]}  Nd7 {[%clk 0:00:45]} 30. Qc3 {[%clk 0:00:41]}  Nb6 {[%clk 0:00:43]} 31. Nb2 {[%clk 0:00:26]}  Qa7 {[%clk 0:00:34]} 32. Nd3 {[%clk 0:00:22]}  Qa4 {[%clk 0:00:25]} 33. Nc1 {[%clk 0:00:04]}  Bf6 {[%clk 0:00:23]} 34. Qb3 {[%clk 0:00:02]}  Qa1 {[%clk 0:00:20]} 35. Qd1 {[%clk 0:00:02]}  Qc3 {[%clk 0:00:13]} 36. Nd3 {[%clk 0:00:02]}  Bd4 {[%clk 0:00:12]} 37. Qc1 {[%clk 0:00:02]}  Qb3 {[%clk 0:00:12]} 38. g3 {[%clk 0:00:01]}  Qxb5 {[%clk 0:00:12]} 39. Kg2 {[%clk 0:00:01]}  Qb3 {[%clk 0:00:09]} 40. Nf4 {[%clk 0:00:01]}  Be3 {[%clk 0:00:07]} 41. Qd1 {[%clk 0:00:02]}  Qc3 {[%clk 0:00:04]} 42. Qd3 {[%clk 0:00:02]}  Qc1 {[%clk 0:00:04]} 43. Qd1 {[%clk 0:00:01]}  Bxf4 {[%clk 0:00:03]} 44. gxf4 {[%clk 0:00:02]}  Qc7 {[%clk 0:00:03]} 45. Qd2 {[%clk 0:00:02]}  Nd7 {[%clk 0:00:03]} 46. Qe3 {[%clk 0:00:02]}  Nf6 {[%clk 0:00:04]} 47. Kf2 {[%clk 0:00:01]}  Nh5 {[%clk 0:00:04]} 48. f5 {[%clk 0:00:02]}  Qxh2+ {[%clk 0:00:03]} 49. Ke1 {[%clk 0:00:02]}  exf5 {[%clk 0:00:03]} 50. exf5 {[%clk 0:00:03]}  Qb8 {[%clk 0:00:03]} 51. Bc4 {[%clk 0:00:02]}  Qb4+ {[%clk 0:00:03]} 0-1


[Site "https://www.chess.com"]

[Event "Titled Tuesday Blitz March 07 Late 2023"]
[White "Bortnyk, Olexandr"]
[Black "Fernandez Guillen, Ernesto J."]
[WhiteFideId "14120828"]
[BlackFideId "3512428"]
[WhiteElo "2734"]
[BlackElo "2423"]
[Result "1-0"]
[Round "03"]
[TimeControl "180+2"]
[Date "2023.03.07"]
[WhiteClock "0:01:01"]
[BlackClock "0:00:57"]

1. d4 {[%clk 0:03:00]}  Nf6 {[%clk 0:02:59]} 2. Nc3 {[%clk 0:03:00]}  d5 {[%clk 0:02:59]} 3. Bf4 {[%clk 0:03:01]}  e6 {[%clk 0:02:59]} 4. Nb5 {[%clk 0:02:55]}  Na6 {[%clk 0:02:58]} 5. e3 {[%clk 0:02:55]}  c6 {[%clk 0:02:58]} 6. Nc3 {[%clk 0:02:55]}  Nc7 {[%clk 0:02:59]} 7. Nf3 {[%clk 0:02:55]}  Bd6 {[%clk 0:02:59]} 8. Ne5 {[%clk 0:02:55]}  O-O {[%clk 0:02:58]} 9. Qf3 {[%clk 0:02:46]}  Nd7 {[%clk 0:02:52]} 10. Nxc6 {[%clk 0:02:45]}  bxc6 {[%clk 0:02:51]} 11. Bxd6 {[%clk 0:02:46]}  Re8 {[%clk 0:02:52]} 12. Qg3 {[%clk 0:02:43]}  Na6 {[%clk 0:02:50]} 13. a3 {[%clk 0:02:17]}  c5 {[%clk 0:02:48]} 14. Bb5 {[%clk 0:02:05]}  cxd4 {[%clk 0:02:39]} 15. exd4 {[%clk 0:02:06]}  Qb6 {[%clk 0:02:38]} 16. Rd1 {[%clk 0:01:51]}  f6 {[%clk 0:02:30]} 17. O-O {[%clk 0:01:46]}  Rd8 {[%clk 0:02:22]} 18. Rfe1 {[%clk 0:01:40]}  Kf7 {[%clk 0:02:03]} 19. Rxe6 {[%clk 0:01:29]}  Kxe6 {[%clk 0:01:54]} 20. Re1+ {[%clk 0:01:28]}  Ne5 {[%clk 0:01:54]} 21. dxe5 {[%clk 0:01:25]}  Kf7 {[%clk 0:00:56]} 22. exf6 {[%clk 0:01:18]}  g6 {[%clk 0:00:57]} 23. Re7+ {[%clk 0:01:15]}  Kf8 {[%clk 0:00:57]} 24. Qg5 {[%clk 0:01:01]} 1-0


[Site "https://www.chess.com"]